bitfinex/quotes_SOLUSD_20251126
["timestamp","ask_amount","ask_price","bid_price","bid_amount"]
[1764168783585,12.99612326,137.46,137.39,13.68612326]
[1764168783885,0.31,137.55,137.43,12.99612326]
[1764168784083,36.01173413,137.69,137.43,12.99612326]
[1764168784084,0.31,137.62,137.43,0.72764316]
[1764168784258,0.31,137.69,137.55,16.308864]
[1764168784465,5.55999999,137.68,137.51,12.99612326]
[1764168784764,12.99612326,137.64,137.57,12.99612326]
[1764168785264,3.58,137.68,137.57,12.99612326]
[1764168785265,12.99612326,137.62,137.57,0.69]
[1764168785790,12.99612326,137.58,137.53,0.7]
[1764168785977,12.99612326,137.55,137.5,0.7]
[1764168786303,16.308864,137.58,137.4,19.47999999]
[1764168786304,12.99612326,137.52,137.47,0.7]
[1764168786468,12.99612326,137.52,137.47,7.97431439]
[1764168786670,12.99612326,137.52,137.48,0.7]
[1764168787366,19.888864,137.56,137.48,0.7]
[1764168787367,12.99612326,137.51,137.48,0.7]
[1764168787884,12.99612326,137.52,137.48,0.7]
[1764168788082,12.99612326,137.5,137.45,7.27537286]
[1764168788366,12.99612326,137.51,137.46,0.7]
[1764168788565,25.11880892,137.55,137.46,0.7]
[1764168788566,12.99612326,137.5,137.46,0.7]
[1764168788767,12.99612326,137.51,137.46,26.16192644]
[1764168789066,12.99612326,137.5,137.46,26.16192644]
[1764168789379,12.99612326,137.5,137.47,0.7]
[1764168789579,12.99612326,137.5,137.46,7.27481747]
[1764168789798,12.99612326,137.5,137.46,7.97481747]
[1764168790085,12.99612326,137.49,137.45,7.27531011]
[1764168790265,3.56,137.5,137.39,0.72785501]
[1764168790462,12.99612326,137.5,137.43,12.99612326]
[1764168790682,11.13247073,137.48,137.43,0.7]
[1764168790888,11.13247073,137.49,137.44,0.7]
[1764168791690,0.14216157,137.54,137.44,0.7]
[1764168791691,35.55992913,137.69,137.5,8.80994492]
[1764168791894,0.31,137.69,137.51,54.28721983]
[1764168792193,1.99999999,137.84,137.56,50.0]
[1764168792394,1.99999999,137.84,137.55,0.7]
[1764168792395,0.31,137.81,137.69,11.13247073]
[1764168792695,22.26494146,137.7,137.57,0.7]
[1764168792867,27.44133473,137.63,137.58,0.28432314]
[1764168793294,11.13247073,137.67,137.59,0.7]
[1764168793497,11.13247073,137.65,137.59,0.7]
[1764168793795,11.13247073,137.68,137.61,0.28432314]
[1764168794182,11.13247073,137.64,137.59,0.7]
[1764168794583,27.44133473,137.66,137.59,0.7]
[1764168794890,11.13247073,137.65,137.6,7.26744186]
[1764168795389,16.308864,137.65,137.6,0.68]
[1764168795597,27.44133473,137.65,137.6,0.68]
[1764168795770,11.13247073,137.64,137.6,0.68]
[1764168796301,11.13247073,137.61,137.56,0.68]
[1764168796491,11.13247073,137.62,137.56,0.96432314]
[1764168796892,11.13247073,137.61,137.56,0.68]
[1764168797093,11.13247073,137.61,137.57,7.26902667]
[1764168797286,11.13247073,137.62,137.57,25.44159336]
[1764168797477,11.13247073,137.62,137.57,26.12159336]
[1764168798013,27.44133473,137.65,137.58,0.96432314]
[1764168798172,27.44133473,137.65,137.58,12.09679387]
[1764168798173,16.308864,137.65,137.58,12.09679387]
[1764168798372,16.308864,137.65,137.59,0.68]
[1764168798578,27.44133473,137.65,137.59,0.68]
[1764168798789,11.13247073,137.63,137.59,0.68]
[1764168798973,11.13247073,137.63,137.59,7.9476351]
[1764168799174,27.44133473,137.64,137.59,7.9476351]
[1764168799392,11.13247073,137.63,137.59,26.11756023]
[1764168799800,11.13247073,137.63,137.59,7.9476351]
[1764168800502,11.13247073,137.62,137.59,7.9476351]
[1764168800719,16.308864,137.64,137.59,7.9476351]
[1764168800720,16.308864,137.64,137.6,0.68]
[1764168800918,27.44133473,137.64,137.6,0.68]
[1764168801121,11.13247073,137.63,137.58,7.26849832]
[1764168801416,11.13247073,137.63,137.57,18.85242328]
[1764168801417,11.13247073,137.6,137.57,7.26893157]
[1764168801792,11.13247073,137.59,137.54,0.68]
[1764168801993,11.13247073,137.61,137.55,0.68]
[1764168802195,11.13247073,137.6,137.55,0.68]
[1764168802394,11.13247073,137.59,137.55,0.68]
[1764168802616,11.13247073,137.56,137.52,0.68]
[1764168802818,11.13247073,137.53,137.49,0.68]
[1764168803115,11.13247073,137.53,137.49,26.13625055]
[1764168803507,11.13247073,137.54,137.49,26.13625055]
[1764168803921,11.13247073,137.54,137.5,0.68]
[1764168804608,11.13247073,137.53,137.49,25.45625055]
[1764168804818,11.13247073,137.52,137.49,7.27325623]
[1764168805402,3.56,137.54,137.49,7.95325623]
[1764168805922,11.13247073,137.52,137.49,7.95325623]
[1764168806121,3.56,137.54,137.49,7.95325623]
[1764168806328,11.13247073,137.52,137.49,7.95325623]
[1764168806500,7.34771301,137.52,137.49,7.95325623]
[1764168806822,8.80994492,137.53,137.46,18.86671687]
[1764168807123,25.11880892,137.56,137.48,7.27378527]
[1764168807353,0.31,137.71,137.6,0.14216157]
[1764168807497,51.99999999,137.79,137.6,0.14216157]
[1764168807498,3.56,137.75,137.6,0.14216157]
[1764168807703,0.31,137.78,137.63,0.14216157]
[1764168808000,7.34771301,137.76,137.66,0.28432314]
[1764168808203,7.34771301,137.71,137.65,9.09426806]
[1764168808424,3.56,137.75,137.66,0.68]
[1764168808425,7.34771301,137.69,137.66,0.68]
[1764168808601,11.104154,137.67,137.58,4.24]
[1764168808805,11.104154,137.67,137.58,0.68]
[1764168808806,16.308864,137.64,137.58,0.68]
[1764168809014,11.104154,137.62,137.58,0.68]
[1764168809211,11.104154,137.62,137.58,7.94844561]
[1764168809431,11.104154,137.61,137.58,0.68]
[1764168809622,23.57439449,137.64,137.54,19.91409892]
[1764168809623,27.413018,137.59,137.54,0.68]
[1764168810125,11.104154,137.56,137.52,25.4508435]
[1764168810429,16.308864,137.59,137.53,11.784154]
[1764168810733,11.104154,137.61,137.53,0.68]
[1764168811021,27.413018,137.61,137.54,11.784154]
[1764168811224,27.413018,137.61,137.55,25.44529261]
[1764168811426,11.104154,137.59,137.55,7.2700836]
[1764168811842,11.104154,137.59,137.55,7.9500836]
[1764168812132,11.104154,137.6,137.56,0.68]
[1764168812428,11.104154,137.59,137.56,0.68]
[1764168812613,11.104154,137.59,137.55,7.2700836]
[1764168812810,11.104154,137.59,137.55,7.9500836]
[1764168813012,11.104154,137.58,137.55,7.2700836]
[1764168813211,11.104154,137.58,137.53,25.44899294]
[1764168813405,11.104154,137.58,137.54,0.68]
[1764168814013,11.104154,137.59,137.54,0.68]
[1764168814313,16.308864,137.61,137.54,0.96432314]
[1764168814520,11.104154,137.64,137.57,11.38847714]
[1764168814723,11.104154,137.7,137.64,8.80994492]
[1764168815029,11.104154,137.69,137.65,0.68]
[1764168815338,11.104154,137.69,137.66,7.26427429]
[1764168815629,11.104154,137.68,137.65,0.68]
[1764168815814,11.104154,137.67,137.64,7.26525622]
[1764168816015,11.104154,137.66,137.63,7.26571177]
[1764168816408,11.104154,137.66,137.63,7.94571177]
[1764168816627,11.104154,137.67,137.63,7.94571177]
[1764168816927,3.54,137.72,137.63,25.4303561]
[1764168817130,0.1,137.81,137.69,11.104154]
[1764168817334,11.104154,137.76,137.71,7.26163677]
[1764168817528,11.104154,137.73,137.67,0.28432314]
[1764168817833,11.104154,137.73,137.67,0.96432314]
[1764168818326,11.104154,137.68,137.63,0.68]
[1764168818530,11.104154,137.68,137.64,0.68]
[1764168818728,11.104154,137.69,137.64,0.68]
[1764168819308,16.308864,137.7,137.65,7.26480203]
[1764168819626,11.104154,137.69,137.65,25.42680711]
[1764168819822,8.80994492,137.73,137.66,0.68]
[1764168820002,11.104154,137.69,137.66,0.68]
[1764168820422,11.104154,137.72,137.66,0.96432314]
[1764168820830,11.104154,137.71,137.67,0.68]
[1764168821022,11.104154,137.69,137.65,7.94480203]
[1764168821333,11.104154,137.69,137.65,26.10680711]
[1764168821517,11.104154,137.72,137.66,0.96432314]
[1764168821925,11.104154,137.7,137.66,0.68]
[1764168822132,11.104154,137.69,137.66,0.68]
[1764168822431,11.104154,137.68,137.65,25.42680711]
[1764168822733,11.104154,137.67,137.65,7.26480203]
[1764168823230,11.104154,137.68,137.65,7.26480203]
[1764168823437,11.104154,137.68,137.65,18.16200508]
[1764168823620,11.104154,137.68,137.65,18.84200508]
[1764168824009,16.07144262,137.72,137.65,18.84200508]
[1764168824010,11.104154,137.69,137.66,0.68]
[1764168824424,11.104154,137.68,137.64,7.26532984]
[1764168824614,11.104154,137.66,137.61,7.26691374]
[1764168824813,16.308864,137.51,137.37,36.39804906]
[1764168825035,16.308864,137.51,137.33,0.1]
[1764168825036,11.104154,137.38,137.33,0.1]
[1764168825236,27.413018,137.36,137.33,0.1]
[1764168825439,50.0,137.42,137.21,1.99999999]
[1764168825731,1.99999999,137.44,137.22,0.71]
[1764168825732,11.104154,137.4,137.22,0.71]
[1764168826038,0.28432314,137.38,137.25,16.308864]
[1764168826220,0.28432314,137.38,137.22,6.24999999]
[1764168826221,11.104154,137.38,137.31,11.104154]
[1764168826610,11.104154,137.39,137.32,11.814154]
[1764168826814,11.104154,137.38,137.32,0.71]
[1764168827009,11.104154,137.39,137.32,28.123018]
[1764168827232,8.80994492,137.38,137.32,28.123018]
[1764168827409,8.80994492,137.38,137.33,7.28173013]
[1764168827826,11.104154,137.4,137.34,0.71]
[1764168828222,11.104154,137.37,137.3,0.71]
[1764168828442,11.104154,137.37,137.31,0.71]
[1764168828616,14.644154,137.38,137.31,11.814154]
[1764168828819,14.644154,137.38,137.32,11.104154]
[1764168829021,14.644154,137.38,137.32,11.814154]
[1764168829344,14.644154,137.38,137.32,0.71]
[1764168829528,14.644154,137.38,137.31,11.104154]
[1764168829529,11.104154,137.36,137.31,7.28279076]
[1764168829856,11.104154,137.37,137.31,26.19976767]
[1764168830140,19.91409892,137.36,137.31,7.28279076]
[1764168830343,19.91409892,137.32,137.25,11.104154]
[1764168830513,11.104154,137.31,137.26,17.018864]
[1764168830716,11.104154,137.31,137.27,16.308864]
[1764168831028,11.104154,137.31,137.27,17.018864]
[1764168831229,11.104154,137.31,137.27,16.308864]
[1764168831539,11.104154,137.31,137.27,23.59326225]
[1764168831740,8.80994492,137.32,137.27,23.59326225]
[1764168831947,11.104154,137.31,137.27,23.59326225]
[1764168832118,11.104154,137.33,137.28,0.71]
[1764168832314,11.104154,137.32,137.27,41.80554461]
[1764168832539,11.104154,137.31,137.27,23.59326225]
[1764168833238,11.104154,137.29,137.27,7.28439825]
[1764168833447,11.104154,137.31,137.25,25.4996079]
[1764168833647,11.104154,137.31,137.26,0.71]
[1764168833812,11.104154,137.33,137.26,12.09847714]
[1764168834025,11.104154,137.33,137.27,0.71]
[1764168834216,38.37844108,137.45,137.28,27.69734114]
[1764168834428,11.104154,137.36,137.29,11.104154]
[1764168834628,11.104154,137.36,137.29,11.814154]
[1764168834825,11.104154,137.36,137.3,0.71]
[1764168835033,11.104154,137.35,137.3,0.71]
[1764168835226,11.104154,137.34,137.3,0.71]
[1764168835544,11.104154,137.35,137.31,7.28279076]
[1764168835951,11.104154,137.36,137.32,0.71]
[1764168836251,11.104154,137.37,137.32,0.71]
[1764168836547,11.104154,137.34,137.3,7.2832441]
[1764168836918,11.104154,137.35,137.3,25.49154708]
[1764168837119,11.104154,137.35,137.3,0.71]
[1764168837629,11.104154,137.35,137.3,7.99310563]
[1764168838324,11.104154,137.35,137.3,7.28310563]
[1764168838545,11.104154,137.32,137.28,16.308864]
[1764168838742,19.91409892,137.34,137.29,0.71]
[1764168839133,11.104154,137.33,137.29,0.71]
[1764168839527,11.104154,137.33,137.3,7.28332119]
[1764168839735,11.104154,137.32,137.3,7.28332119]
[1764168839933,11.104154,137.32,137.27,18.21228236]
[1764168840241,11.104154,137.32,137.28,0.71]
[1764168840442,11.104154,137.33,137.28,7.99438228]
[1764168840738,19.91409892,137.32,137.28,7.28438228]
[1764168841147,19.91409892,137.32,137.25,31.643018]
[1764168841148,11.104154,137.29,137.25,3.52]
[1764168841458,8.80994492,137.3,137.2,36.4429517]
[1764168841459,11.104154,137.27,137.21,4.23]
[1764168841750,11.104154,137.32,137.26,11.104154]
[1764168842054,11.104154,137.32,137.25,30.933018]
[1764168842359,3.52,137.35,137.25,20.538864]
[1764168842360,11.104154,137.3,137.25,20.538864]
[1764168842547,11.104154,137.29,137.22,26.21648592]
[1764168842851,11.104154,137.27,137.22,26.21648592]
[1764168843222,11.104154,137.27,137.23,0.71]
[1764168843624,11.104154,137.27,137.22,25.50648592]
[1764168843625,11.104154,137.26,137.22,7.2875674]
[1764168844250,11.104154,137.25,137.22,7.2875674]
[1764168844459,11.104154,137.23,137.17,7.2902238]
[1764168844640,11.104154,137.26,137.19,11.104154]
[1764168844854,8.80994492,137.3,137.22,11.104154]
[1764168845157,11.104154,137.29,137.23,11.104154]
[1764168845365,11.104154,137.29,137.21,16.308864]
[1764168845366,11.104154,137.29,137.22,11.774154]
[1764168845871,11.104154,137.24,137.19,4.19]
[1764168846230,11.104154,137.25,137.2,0.67]
[1764168846433,3.52,137.27,137.2,11.774154]
[1764168846434,11.104154,137.26,137.2,11.774154]
[1764168846633,11.104154,137.26,137.2,0.67]
[1764168847032,11.104154,137.24,137.18,10.80969237]
[1764168847275,11.104154,137.21,137.16,7.96023769]
[1764168847452,11.104154,137.18,137.16,7.29023769]
[1764168847778,11.104154,137.17,137.14,7.29181857]
[1764168847974,8.80994492,137.22,137.14,7.29181857]
[1764168847975,11.104154,137.18,137.14,7.29181857]
[1764168848261,3.52,137.19,137.13,8.06218557]
[1764168848560,11.104154,137.17,137.13,8.06218557]
[1764168848777,11.104154,137.16,137.13,8.06218557]
[1764168848933,11.104154,137.17,137.13,8.06218557]
[1764168849140,11.104154,137.17,137.13,26.29306138]
[1764168849333,3.52,137.19,137.13,8.06218557]
[1764168849334,11.104154,137.16,137.13,8.06218557]
[1764168849561,11.104154,137.16,137.13,7.39218557]
[1764168849743,11.104154,137.17,137.13,26.29306138]
[1764168850059,11.104154,137.18,137.13,26.29306138]
[1764168850247,11.104154,137.17,137.13,26.29306138]
[1764168850439,11.104154,137.16,137.13,7.39218557]
[1764168850763,12.98162731,137.16,137.13,7.39218557]
[1764168851261,12.98162731,137.14,137.13,0.1]
[1764168851557,8.80994492,137.17,137.13,0.1]
[1764168851558,12.98162731,137.15,137.13,0.1]
[1764168851754,12.98162731,137.14,137.13,0.1]
[1764168851956,12.98162731,137.15,137.13,0.1]
[1764168852337,25.31157223,137.17,137.13,0.1]
[1764168852539,12.98162731,137.16,137.13,0.77]
[1764168852739,0.28432314,137.2,137.13,0.77]
[1764168852740,12.98162731,137.15,137.13,0.77]
[1764168852949,12.98162731,137.17,137.13,0.1]
[1764168853150,0.21,137.29,137.17,0.28432314]
[1764168853476,12.98162731,137.26,137.2,13.26595045]
[1764168853654,3.52,137.3,137.22,0.28432314]
[1764168853860,12.98162731,137.3,137.23,12.98162731]
[1764168854161,83.55992914,137.43,137.26,13.26595045]
[1764168854162,12.98162731,137.32,137.26,13.26595045]
[1764168854364,12.98162731,137.28,137.24,7.93650539]
[1764168854735,12.98162731,137.26,137.23,7.28696163]
[1764168854958,12.98162731,137.29,137.24,0.65]
[1764168855267,12.98162731,137.25,137.22,7.28739034]
[1764168855470,12.98162731,137.26,137.22,25.50630886]
[1764168855644,8.80994492,137.28,137.22,25.50630886]
[1764168855842,12.98162731,137.26,137.22,25.50630886]
[1764168856045,12.98162731,137.27,137.23,0.65]
[1764168856442,12.98162731,137.26,137.23,0.65]
[1764168856641,12.98162731,137.27,137.23,0.65]
[1764168857358,12.98162731,137.3,137.23,13.63162731]
[1764168857570,7.27907992,137.38,137.29,12.98162731]
[1764168857780,12.98162731,137.35,137.29,0.28432314]
[1764168857950,12.98162731,137.35,137.3,26.14162417]
[1764168858346,12.98162731,137.34,137.3,7.28332119]
[1764168858550,12.98162731,137.34,137.31,0.65]
[1764168858776,12.98162731,137.33,137.3,7.28332119]
[1764168859144,12.98162731,137.31,137.28,3.5]
[1764168859385,12.98162731,137.31,137.27,7.28491294]
[1764168859590,12.98162731,137.3,137.27,7.93491294]
[1764168859783,12.98162731,137.3,137.25,21.71439506]
[1764168859784,12.98162731,137.29,137.26,7.28527823]
[1764168859984,12.98162731,137.28,137.25,7.93583352]
[1764168860213,12.98162731,137.29,137.25,7.93583352]
[1764168860511,12.98162731,137.29,137.24,18.21543514]
[1764168860512,8.80994492,137.21,137.15,7.94128691]
[1764168860694,3.5,137.2,137.13,0.75]
[1764168860888,0.21,137.21,137.13,0.1]
[1764168861095,50.0,137.27,137.13,0.1]
[1764168861096,12.98162731,137.14,137.13,0.1]
[1764168861321,16.308864,137.11,137.03,0.65]
[1764168861491,0.28432314,137.09,137.03,0.65]
[1764168861701,12.98162731,137.12,137.04,12.98162731]
[1764168861987,3.52,137.14,137.09,7.29447808]
[1764168861988,12.98162731,137.13,137.09,7.29447808]
[1764168862313,12.98162731,137.14,137.09,25.53067328]
[1764168862495,21.79157223,137.15,137.1,0.65]
[1764168862825,16.50162731,137.16,137.1,0.65]
[1764168863907,21.79157223,137.13,137.09,7.29447808]
[1764168864103,21.79157223,137.13,137.08,7.29501021]
[1764168864104,12.98162731,137.12,137.08,7.29501021]
[1764168864420,12.98162731,137.13,137.08,25.53253574]
[1764168864612,12.98162731,137.13,137.08,26.18253574]
[1764168864810,12.98162731,137.13,137.09,0.65]
[1764168865020,8.80994492,137.15,137.09,0.65]
[1764168865223,12.98162731,137.14,137.09,0.65]
[1764168865632,12.98162731,137.13,137.09,0.65]
[1764168866128,12.98162731,137.14,137.1,7.29394602]
[1764168866323,12.98162731,137.13,137.09,7.29430226]
[1764168866720,12.98162731,137.14,137.09,7.94430226]
[1764168866917,12.98162731,137.14,137.09,26.18049746]
[1764168867122,12.98162731,137.14,137.1,0.65]
[1764168867320,12.98162731,137.13,137.09,25.53049746]
[1764168867821,12.98162731,137.13,137.09,7.94430226]
[1764168868247,12.98162731,137.14,137.09,25.53049746]
[1764168868412,12.98162731,137.13,137.09,7.29430226]
[1764168869515,12.98162731,137.13,137.09,7.94430226]
[1764168870115,12.98162731,137.13,137.09,26.18049746]
[1764168870319,8.80994492,137.14,137.1,0.65]
[1764168870320,12.98162731,137.14,137.1,0.65]
[1764168870526,0.14216157,137.17,137.1,0.65]
[1764168870729,12.98162731,137.15,137.1,0.65]
[1764168870944,16.48162731,137.16,137.1,0.65]
[1764168871151,16.48162731,137.16,137.09,38.51212477]
[1764168871152,12.98162731,137.14,137.09,25.53049746]
[1764168871515,12.98162731,137.13,137.09,7.29430226]
[1764168871850,12.98162731,137.13,137.07,18.88868606]
[1764168872026,12.98162731,137.13,137.08,7.29501021]
[1764168872229,12.98162731,137.12,137.08,7.29501021]
[1764168872646,12.86636529,137.1,137.04,0.65]
[1764168872817,12.86636529,137.06,137.04,7.29712498]
[1764168873018,12.86636529,137.07,137.02,26.19368965]
[1764168873240,12.86636529,137.09,137.03,13.51636529]
[1764168873635,12.86636529,137.09,137.04,0.65]
[1764168873819,12.86636529,137.1,137.04,0.65]
[1764168874233,12.86636529,137.1,137.05,25.53812476]
[1764168874540,16.36636529,137.11,137.06,0.65]
[1764168874743,12.86636529,137.09,137.06,0.65]
[1764168874914,3.5,137.11,137.06,0.65]
[1764168875119,12.86636529,137.13,137.06,13.51636529]
[1764168875327,12.86636529,137.1,137.06,0.65]
[1764168875726,12.86636529,137.12,137.06,0.65]
[1764168876147,29.17522929,137.09,137.0,0.1]
[1764168876356,25.73273058,137.01,136.88,0.65]
[1764168876560,25.53626148,137.06,136.84,0.65]
[1764168876561,16.308864,136.94,136.84,0.65]
[1764168876721,83.55992914,137.02,136.82,7.40878161]
[1764168876722,16.308864,136.92,136.82,0.1]
[1764168877056,33.55992914,137.02,136.82,0.1]
[1764168877057,12.86636529,136.83,136.82,0.1]
[1764168877222,6.22760042,136.98,136.83,0.65]
[1764168877420,8.95210649,136.96,136.84,3.5]
[1764168877745,21.67631021,136.92,136.85,13.51636529]
[1764168878050,12.86636529,136.94,136.88,12.86636529]
[1764168878254,21.67631021,136.96,136.87,25.57171037]
[1764168878423,8.80994492,136.98,136.93,12.86636529]
[1764168878623,16.308864,136.99,136.92,13.01680919]
[1764168878951,8.80994492,136.97,136.91,13.01680919]
[1764168879142,21.82675411,136.97,136.91,13.01680919]
[1764168879354,21.82675411,136.94,136.87,26.22171037]
[1764168879558,21.82675411,136.89,136.82,0.75]
[1764168879865,21.82675411,136.89,136.82,13.76680919]
[1764168880166,13.01680919,136.87,136.82,8.05874249]
[1764168880325,13.01680919,136.87,136.82,0.1]
[1764168880526,21.82675411,136.88,136.82,13.76680919]
[1764168880732,16.308864,136.9,136.83,13.01680919]
[1764168880944,16.308864,136.9,136.85,13.01680919]
[1764168881327,16.308864,136.9,136.85,13.66680919]
[1764168881528,21.82675411,136.91,136.86,0.65]
[1764168881744,13.01680919,136.89,136.82,0.75]
[1764168881955,13.01680919,136.9,136.84,13.01680919]
[1764168882458,13.01680919,136.9,136.85,7.30727073]
[1764168882652,8.80994492,136.89,136.85,7.30727073]
[1764168882853,8.80994492,136.89,136.82,0.1]
[1764168882854,0.28432314,136.85,136.82,0.1]
[1764168883073,21.82675411,136.83,136.82,0.1]
[1764168883746,16.308864,136.87,136.82,7.40877227]
[1764168883951,8.80994492,136.86,136.82,7.40877227]
[1764168884259,8.80994492,136.86,136.82,0.1]
[1764168884758,8.80994492,136.87,136.83,13.68680919]
[1764168885255,8.80994492,136.88,136.83,13.68680919]
[1764168885552,8.80994492,136.89,136.84,13.68680919]
[1764168885959,3.5,136.9,136.85,13.68680919]
[1764168886340,19.808864,136.9,136.85,20.99370215]
[1764168886956,19.808864,136.9,136.86,0.67]
[1764168887136,19.808864,136.9,136.86,13.68680919]
[1764168887333,16.308864,136.9,136.86,13.01680919]
[1764168887531,25.32675411,136.93,136.87,13.68680919]
[1764168887727,25.32675411,136.93,136.82,0.1]
[1764168887728,13.01680919,136.88,136.83,7.30819101]
[1764168887938,13.01680919,136.88,136.83,20.3250002]
[1764168888150,25.11880892,136.89,136.84,13.68680919]
[1764168888357,13.01680919,136.88,136.83,20.3250002]
[1764168888745,13.01680919,136.88,136.83,7.97819101]
[1764168888947,13.01680919,136.88,136.83,20.9950002]
[1764168889155,13.01680919,136.88,136.82,18.37096804]
[1764168889156,13.01680919,136.85,136.82,0.1]
[1764168889339,8.80994492,136.85,136.82,0.1]
[1764168889665,16.308864,136.86,136.83,0.67]
[1764168890444,8.80994492,136.88,136.83,13.68680919]
[1764168890750,41.63561811,136.89,136.84,20.32461392]
[1764168890751,32.82567319,136.89,136.84,20.32461392]
[1764168891062,19.808864,136.89,136.84,38.59412575]
[1764168891262,19.808864,136.89,136.84,39.26412575]
[1764168891559,13.01680919,136.87,136.83,7.30830654]
[1764168891932,21.82675411,136.88,136.83,7.97830654]
[1764168892137,32.82567319,136.89,136.84,13.68680919]
[1764168892352,13.01680919,136.88,136.84,0.67]
[1764168892560,13.01680919,136.88,136.83,38.59596276]
[1764168892866,13.01680919,136.88,136.83,39.26596276]
[1764168893079,13.01680919,136.88,136.84,0.67]
[1764168893286,29.32567319,136.86,136.82,0.1]
[1764168893444,8.80994492,136.85,136.82,0.1]
[1764168893755,21.82675411,136.85,136.82,0.1]
[1764168894459,13.01680919,136.84,136.82,0.1]
[1764168895852,16.11723021,136.85,136.82,0.1]
[1764168895853,8.80994492,136.85,136.82,0.1]
[1764168896042,13.01680919,136.84,136.82,0.1]
[1764168896665,16.11747916,136.85,136.82,0.1]
[1764168896869,13.01680919,136.84,136.82,0.1]
[1764168897249,13.01680919,136.83,136.82,0.1]
[1764168897456,13.01680919,136.84,136.82,0.1]
[1764168897762,25.30675411,136.83,136.82,0.1]
[1764168897966,41.89994125,136.83,136.82,0.1]
[1764168898166,25.11880892,136.81,136.8,0.1]
[1764168898356,25.11880892,136.81,136.78,1e-08]
[1764168898357,38.41994125,136.81,136.78,1e-08]
[1764168898667,29.34650212,136.79,136.78,1e-08]
[1764168899166,8.80994492,136.62,136.61,2.0582438]
[1764168899341,8.80994492,136.62,136.43,0.1]
[1764168899342,8.80994492,136.58,136.46,0.67]
[1764168899542,16.308864,136.55,136.47,0.77]
[1764168899750,16.308864,136.5,136.47,0.1]
[1764168899968,16.308864,136.5,136.43,0.1]
[1764168899969,0.28432314,136.44,136.43,0.1]
[1764168900175,0.28432314,136.44,136.39,0.1]
[1764168900176,9.09426806,136.4,136.39,0.1]
[1764168900473,18.30886399,136.37,136.36,1e-08]
[1764168900642,50.0,136.36,136.34,0.1]
[1764168901057,50.0,136.37,136.14,50.0]
[1764168901259,1.99999999,136.37,136.25,50.0]
[1764168901468,1.99999999,136.43,136.26,3.52]
[1764168901764,1.99999999,136.41,136.29,16.308864]
[1764168901941,1.99999999,136.42,136.26,54.92389109]
[1764168902142,2.0,136.52,136.26,54.92389109]
[1764168902143,1.99999999,136.43,136.26,4.92389109]
[1764168902450,1.99999999,136.44,136.27,50.67]
[1764168902661,1.99999999,136.47,136.33,25.11880892]
[1764168902864,1.99999999,136.51,136.46,13.14301218]
[1764168903065,1.99999999,136.46,136.42,13.14301218]
[1764168903378,1.99999999,136.53,136.45,13.14301218]
[1764168903563,3.54,136.54,136.51,13.14301218]
[1764168903769,1.99999999,136.54,136.38,0.67]
[1764168903975,3.54,136.58,136.38,0.67]
[1764168903976,1.99999999,136.55,136.52,13.14301218]
[1764168904147,1.99999999,136.55,136.46,0.28432314]
[1764168904373,1.99999999,136.53,136.52,13.14301218]
[1764168904570,1.99999999,136.57,136.53,7.32439756]
[1764168904848,1.99999999,136.61,136.52,16.308864]
[1764168905055,5.53999999,136.64,136.59,13.14301218]
[1764168905361,1.99999999,136.57,136.55,13.14301218]
[1764168905557,1.99999999,136.56,136.54,13.14301218]
[1764168905747,1.99999999,136.58,136.55,13.14301218]
[1764168905948,5.55999999,136.57,136.47,7.32761779]
[1764168906164,1.99999999,136.5,136.41,3.56]
[1764168906361,1.99999999,136.51,136.49,13.14301218]
[1764168906580,18.30886399,136.54,136.5,13.14301218]
[1764168906757,1.99999999,136.52,136.5,13.14301218]
[1764168907077,1.99999999,136.5,136.47,20.47059538]
[1764168907248,1.99999999,136.5,136.49,13.14301218]
[1764168907448,1.99999999,136.5,136.48,13.14301218]
[1764168907684,16.308864,136.5,136.39,3.56]
[1764168907861,16.308864,136.5,136.47,13.14301218]
[1764168908064,3.56,136.52,136.49,13.14301218]
[1764168908373,1.99999999,136.49,136.48,13.14301218]
[1764168908574,1.99999999,136.52,136.44,16.308864]